bitfinex-derivatives/quotes_SOLF0:USTF0_20251228
["timestamp","ask_amount","ask_price","bid_price","bid_amount"]
[1766887671589,96.78872549,124.12,124.09,0.0560629]
[1766887675182,95.29126737,124.12,124.09,3.5360629]
[1766887679996,96.78872549,124.12,124.09,0.0560629]
[1766887680183,96.78872549,124.12,124.07,3.48]
[1766887681196,96.78872549,124.12,124.08,3.53955627]
[1766887681590,95.29126737,124.12,124.08,3.53955627]
[1766887687713,96.78872549,124.12,124.08,3.53955627]
[1766887693720,96.78872549,124.12,124.03,10.09030874]
[1766887693721,1.49745812,124.09,124.03,10.09030874]
[1766887693917,1.49745812,124.05,124.02,3.48]
[1766887694219,1.49745812,124.06,124.02,3.48]
[1766887694720,0.05171995,124.05,124.03,0.05969246]
[1766887718131,1.49745812,124.04,124.0,3.26]
[1766887719137,1.49745812,124.04,124.01,0.05376874]
[1766887719730,1.54917807,124.05,124.01,0.05376874]
[1766887722139,0.05171995,124.05,124.01,0.05376874]
[1766887722437,0.05171995,124.05,124.01,3.31376874]
[1766887725130,0.00171995,124.05,124.01,3.31376874]
[1766887789896,0.00171995,124.05,124.01,4.81246673]
[1766887790302,0.00171995,124.05,124.02,3.23]
[1766887807817,0.00171995,124.05,124.01,0.05376874]
[1766887808012,0.00171995,124.05,124.01,3.28376874]
[1766887812326,0.00171995,124.05,124.01,4.78246673]
[1766887813027,0.00171995,124.05,124.02,3.23]
[1766887816034,7.2583,124.09,124.04,3.5]
[1766887816236,8.5483,124.09,124.04,3.5]
[1766887817125,0.06078186,124.08,124.05,0.05072512]
[1766887825340,1.55947985,124.08,124.05,0.05072512]
[1766887826240,2.84947985,124.08,124.01,1.49869799]
[1766887826441,2.78869799,124.08,124.01,1.49869799]
[1766887827344,0.05518684,124.06,124.03,0.06123557]
[1766887860384,0.05518684,124.06,124.03,3.66123557]
[1766887865685,9.2707789,124.09,124.03,3.66123557]
[1766887866695,0.06107911,124.07,124.03,3.66123557]
[1766887912234,6.01185801,124.07,124.03,3.66123557]
[1766887929836,10.02185801,124.07,124.03,0.06123557]
[1766887930742,11.5204392,124.07,124.03,0.06123557]
[1766887930940,5.9507789,124.06,124.03,0.06123557]
[1766887932144,4.07107911,124.07,124.03,0.06123557]
[1766887932335,10.02353845,124.07,124.03,0.06123557]
[1766887954351,10.02353845,124.07,124.03,4.41123557]
[1766887955562,10.02353845,124.07,124.03,5.90981676]
[1766887955762,6.01353845,124.07,124.03,5.90981676]
[1766887956058,6.01353845,124.07,124.03,0.06123557]
[1766887956266,4.3,124.12,124.07,4.35]
[1766887956458,4.3,124.12,124.08,1.49858119]
[1766887956860,4.3,124.12,124.08,5.84858119]
[1766887957270,0.05901954,124.11,124.09,0.05647759]
[1766887967887,4.36,124.14,124.09,4.46647759]
[1766887968078,4.36,124.13,124.09,0.05647759]
[1766887968777,0.0569771,124.12,124.09,0.05647759]
[1766888001607,4.41,124.09,124.03,4.34]
[1766888002007,4.41,124.08,124.03,4.34]
[1766888002708,7.31681596,124.07,124.04,0.06047012]
[1766888015015,11.72681596,124.07,124.04,0.06047012]
[1766888019826,0.05761596,124.07,124.04,0.06047012]
[1766888069788,0.05761596,124.07,124.04,4.38047012]
[1766888095300,4.72,124.11,124.04,4.38047012]
[1766888095498,10.62799743,124.11,124.05,4.56]
[1766888095704,4.72,124.09,124.01,2.34132957]
[1766888096298,4.72,124.09,124.04,0.05972322]
[1766888096501,0.00132422,124.06,124.04,0.05972322]
[1766888097712,0.00132422,124.06,124.04,2.28972322]
[1766888109026,11.9767,124.11,124.04,2.28972322]
[1766888109319,11.9767,124.11,124.04,2.23]
[1766888109520,11.9767,124.11,124.05,2.34132957]
[1766888110123,0.05431089,124.09,124.07,0.05393508]
[1766888110624,0.00431089,124.09,124.07,0.05393508]
[1766888119133,4.72,124.13,124.07,0.05393508]
[1766888119824,10.6346,124.15,124.07,0.05393508]
[1766888120132,0.05331946,124.12,124.1,0.0521658]
[1766888123234,0.00331946,124.12,124.1,0.0521658]
[1766888161973,0.00331946,124.12,124.1,1.54901446]
[1766888165474,0.00331946,124.12,124.1,0.0521658]
[1766888180585,0.00331946,124.12,124.07,1.49684866]
[1766888181585,0.00331946,124.12,124.08,0.05455576]
[1766888186586,0.00331946,124.12,124.08,1.55140442]
[1766888188087,0.00331946,124.12,124.09,1.49684866]
[1766888214004,0.00331946,124.12,124.08,0.05455576]
[1766888217307,0.00331946,124.12,124.09,2.33874138]
[1766888224213,0.00331946,124.12,124.08,0.05455576]
[1766888243030,0.00331946,124.12,124.08,7.31275576]
[1766888266439,0.00331946,124.12,124.09,95.22]
[1766888276142,0.00331946,124.12,124.1,1.49645631]
[1766888277349,0.00331946,124.12,124.11,1.49645631]
[1766888277951,12.34241816,124.19,124.15,1.49645631]
[1766888278142,10.5123,124.19,124.15,1.49645631]
[1766888278342,3.26,124.18,124.15,1.49645631]
[1766888278850,3.31449931,124.18,124.15,1.55669664]
[1766888279036,3.31449931,124.18,124.15,0.06024033]
[1766888279945,3.31449931,124.18,124.15,1.55669664]
[1766888282154,3.31449931,124.18,124.15,0.06024033]
[1766888282654,3.31449931,124.18,124.15,1.55669664]
[1766888283354,3.31449931,124.18,124.15,0.06024033]
[1766888288652,0.05449931,124.18,124.15,0.06024033]
[1766888288954,0.05449931,124.18,124.15,1.55669664]
[1766888289750,0.05449931,124.18,124.15,0.06024033]
[1766888290756,0.05449931,124.18,124.15,1.55669664]
[1766888303466,0.05449931,124.18,124.16,1.49645631]
[1766888303666,0.00449931,124.18,124.17,1.49645631]
[1766888304367,0.00449931,124.18,124.16,1.49645631]
[1766888314793,0.00449931,124.18,124.15,1.55669664]
[1766888318387,0.00449931,124.18,124.15,8.81089664]
[1766888320796,0.00449931,124.18,124.15,7.31444033]
[1766888320995,0.00449931,124.18,124.15,0.06024033]
[1766888350507,0.00449931,124.18,124.15,9.65105378]
[1766888350709,3.52,124.22,124.15,9.65105378]
[1766888351718,0.05951463,124.2,124.15,9.65105378]
[1766888352912,95.22,124.23,124.15,9.65105378]
[1766888353114,95.22,124.23,124.17,2.33661345]
[1766888353416,98.74,124.23,124.17,2.33661345]
[1766888353916,0.05105341,124.21,124.19,0.06116169]
[1766888356620,0.00105341,124.21,124.19,0.06116169]
[1766888386145,0.00105341,124.21,124.15,2.33661345]
[1766888387052,0.00105341,124.21,124.17,0.0589138]
[1766888399292,3.19105341,124.21,124.17,0.0589138]
[1766888399472,3.19105341,124.21,124.12,12.40220253]
[1766888399473,3.19,124.2,124.12,12.40220253]
[1766888400068,3.19,124.2,124.14,1.49550778]
[1766888400267,3.19,124.2,124.15,1.49550778]
[1766888400562,0.05815579,124.19,124.16,0.05642279]
[1766888403468,3.24815579,124.19,124.16,0.05642279]
[1766888404372,0.05815579,124.19,124.16,0.05642279]
[1766888420988,3.19,124.21,124.16,1.55193057]
[1766888421185,7.2505,124.22,124.16,1.55193057]
[1766888421384,4.81550778,124.23,124.17,1.49550778]
[1766888421997,0.05107442,124.21,124.19,0.05222142]
[1766888478465,3.39107442,124.21,124.15,10.06558908]
[1766888478679,3.39107442,124.21,124.15,2.33555661]
[1766888478968,3.39107442,124.21,124.13,12.40114569]
[1766888479160,3.34,124.21,124.13,12.40114569]
[1766888479561,0.05349379,124.18,124.16,0.05447316]
[1766888479768,10.5916,124.2,124.13,12.40114569]
[1766888480757,0.05669028,124.18,124.15,0.06130317]
[1766888486275,3.34,124.2,124.15,0.06130317]
[1766888487271,0.05571747,124.19,124.15,0.06130317]
[1766888488578,3.34,124.22,124.15,2.39685978]
[1766888489372,9.87,124.21,124.15,9.65085978]
[1766888489571,0.05364398,124.2,124.15,9.65085978]
[1766888490172,0.00364398,124.2,124.15,9.65085978]
[1766888490471,10.5893,124.24,124.17,2.33555661]
[1766888491073,3.34,124.24,124.17,2.33555661]
[1766888491373,0.06150547,124.22,124.19,0.0535523]
[1766888501781,0.06150547,124.22,124.19,2.38910891]
[1766888501982,8.68,124.25,124.19,2.38910891]
[1766888502284,12.02,124.25,124.19,2.38910891]
[1766888503094,0.06193377,124.23,124.19,2.38910891]
[1766888506286,0.06193377,124.23,124.19,9.64090891]
[1766888514992,0.06193377,124.23,124.2,95.12]
[1766888522097,0.06193377,124.23,124.21,1.49375938]
[1766888525194,0.06193377,124.23,124.19,0.0535523]
[1766888525396,0.06193377,124.23,124.15,10.06558908]
[1766888525397,3.2,124.21,124.15,10.06558908]
[1766888525590,3.2,124.2,124.14,1.49375938]
[1766888525792,3.2,124.19,124.14,95.12]
[1766888526701,0.05871695,124.18,124.15,0.06013261]
[1766888527194,3.25871695,124.18,124.13,1.49375938]
[1766888527402,3.25871695,124.18,124.13,96.61375938]
[1766888528296,3.25871695,124.18,124.14,0.05278054]
[1766888530908,3.25871695,124.18,124.14,1.54653992]
[1766888532102,3.25871695,124.18,124.16,1.49375938]
[1766888532302,122.93185938,124.25,124.17,1.49375938]
[1766888532508,122.93185938,124.25,124.19,1.49375938]
[1766888533005,122.93185938,124.25,124.18,1.49375938]
[1766888533208,0.06151372,124.23,124.2,0.05929199]
[1766888533402,7.31141372,124.23,124.18,1.49375938]
[1766888533606,8.8051731,124.23,124.17,1.49375938]
[1766888533800,8.74365938,124.23,124.17,1.49375938]
[1766888534200,3.2,124.22,124.17,1.49375938]
[1766888534407,3.25709509,124.21,124.18,0.05136848]
[1766888556133,3.25709509,124.21,124.18,1.54512786]
[1766888558436,3.25709509,124.21,124.18,0.05136848]
[1766888558639,3.25709509,124.21,124.16,1.49375938]
[1766888559638,3.25709509,124.21,124.17,0.05265723]
[1766888562843,3.33,124.2,124.14,1.49375938]
[1766888563540,10.5816,124.2,124.15,1.49375938]
[1766888563738,3.38824822,124.19,124.16,0.05459551]
[1766888574148,10.64034822,124.19,124.16,0.05459551]
[1766888574341,3.46,124.18,124.16,0.05459551]
[1766888576657,3.46,124.18,124.16,0.00459551]
[1766888608289,0.05824822,124.19,124.16,0.00459551]
[1766888608589,95.14,124.23,124.16,0.00459551]
[1766888609493,0.05443486,124.21,124.16,0.00459551]
[1766888610482,3.36,124.2,124.16,0.00459551]
[1766888618092,3.36,124.2,124.16,7.25809551]
[1766888618393,3.36,124.2,124.16,9.59465926]
[1766888618792,0.05443486,124.21,124.16,9.59465926]
[1766888620587,0.05443486,124.21,124.17,7.253]
[1766888620789,3.486e-05,124.21,124.17,7.253]
[1766888621893,0.05383997,124.2,124.17,7.253]
[1766888627506,0.05383997,124.2,124.16,5.39115926]
[1766888644332,3.43383997,124.2,124.16,0.00459551]
[1766888653944,3.43383997,124.2,124.16,1.4999714]
[1766888656949,3.43383997,124.2,124.16,0.00459551]
[1766888657744,3.43383997,124.2,124.16,1.4999714]
[1766888660049,3.43383997,124.2,124.16,0.00459551]
[1766888664351,10.68533997,124.2,124.16,0.00459551]
[1766888667753,3.39,124.19,124.16,0.00459551]
[1766888668955,3.39,124.18,124.16,0.00459551]
[1766888720518,3.52383997,124.2,124.16,0.00459551]
[1766888720720,3.52383997,124.2,124.16,2.3412064]
[1766888722914,0.05383997,124.2,124.16,5.3912064]
[1766888726624,0.05383997,124.2,124.16,12.6448064]
[1766888727326,0.05383997,124.2,124.16,5.3912064]
[1766888741733,0.00383997,124.2,124.17,3.05]
[1766888767949,0.00383997,124.2,124.17,4.54483368]
[1766888777162,0.00383997,124.2,124.17,3.05]
[1766888782166,0.00383997,124.2,124.17,4.54483368]
[1766888782367,0.00383997,124.2,124.18,3.0]
[1766888782566,0.00383997,124.2,124.18,4.49483368]
[1766888786369,0.00383997,124.2,124.18,3.0]
[1766888855638,0.00383997,124.2,124.16,3.00459551]
[1766888868843,0.00383997,124.2,124.17,2.33550368]
[1766888870348,0.00383997,124.2,124.17,5.33550368]
[1766888880861,0.00383997,124.2,124.18,3.0]
[1766888887970,0.00383997,124.2,124.18,4.49450407]
[1766888894885,0.00383997,124.2,124.18,3.0]
[1766888917899,10.5792,124.24,124.19,3.0]
[1766888918293,10.5792,124.24,124.19,4.49450407]
[1766888918994,0.0508192,124.23,124.2,0.05260821]
[1766888920096,10.8006192,124.23,124.2,0.05260821]
[1766888959131,3.5508192,124.23,124.2,0.05260821]
[1766888977541,3.44,124.22,124.17,3.0]
[1766888978650,3.44,124.22,124.18,0.0603148]
[1766889000657,3.29,124.21,124.15,10.06558908]
[1766889000860,3.29,124.21,124.11,5.39530619]
[1766889001053,3.29,124.21,124.12,3.06]
[1766889001651,0.05803365,124.18,124.15,0.05796494]
[1766889001953,3.34803365,124.18,124.15,0.05796494]
[1766889007764,0.05803365,124.18,124.15,5.45327113]
[1766889012063,0.05803365,124.18,124.16,1.49496704]
[1766889019080,0.05803365,124.18,124.15,10.37206494]
[1766889019280,0.05803365,124.18,124.17,1.49496704]
[1766889021585,0.05803365,124.18,124.16,1.49496704]
[1766889021989,0.05803365,124.18,124.15,11.86703198]
[1766889023893,0.05803365,124.18,124.16,1.49496704]
[1766889024987,3.29,124.2,124.16,4.55496704]
[1766889025296,3.23,124.22,124.17,1.49496704]
[1766889026091,0.05180786,124.21,124.18,0.05687445]
[1766889061919,0.05180786,124.21,124.18,1.55184149]
[1766889062121,0.00180786,124.21,124.19,4.44496704]
[1766889063315,0.00180786,124.21,124.2,1.49496704]
[1766889063515,0.00180786,124.21,124.19,4.44496704]
[1766889074023,0.00180786,124.21,124.19,2.95]
[1766889075124,3.29,124.24,124.19,2.95]
[1766889075527,3.29,124.24,124.19,98.09]
[1766889076119,0.05674082,124.23,124.19,98.09]
[1766889076324,0.05674082,124.23,124.2,2.95]
[1766889087734,0.05674082,124.23,124.21,2.89]
[1766889087934,0.05674082,124.23,124.21,2.94823168]
[1766889089138,0.05674082,124.23,124.22,95.12]
[1766889090134,0.05674082,124.23,124.22,98.01]
[1766889091938,3.3,124.29,124.23,2.89]
[1766889092844,3.36078999,124.27,124.25,0.05970117]
[1766889097842,0.00078999,124.27,124.25,2.94970117]
[1766889098551,3.3,124.31,124.25,2.94970117]
[1766889099548,0.0579225,124.29,124.25,2.94970117]
[1766889104554,0.0579225,124.29,124.26,5.16471908]
[1766889105856,3.22,124.33,124.27,2.83]
[1766889106056,3.22,124.33,124.28,5.10471908]
[1766889106960,0.06038282,124.32,124.29,0.05464732]
[1766889120563,0.06038282,124.32,124.29,2.82464732]
[1766889135981,0.06038282,124.32,124.29,4.31663455]
[1766889143091,0.06038282,124.32,124.29,0.05464732]
[1766889143295,4.80237005,124.32,124.27,2.77]
[1766889143994,3.31038282,124.32,124.27,2.77]
[1766889144196,3.31038282,124.32,124.28,0.05844767]
[1766889144602,10.55488282,124.32,124.28,0.05844767]
[1766889148001,0.06038282,124.32,124.28,0.05844767]
[1766889148304,0.00038282,124.32,124.31,1.49198723]
[1766889148500,0.00038282,124.32,124.28,0.05844767]
[1766889148698,0.00038282,124.32,124.31,1.49198723]
[1766889148903,3.25,124.36,124.31,1.49198723]
[1766889149607,10.4925,124.36,124.31,1.49198723]
[1766889149806,10.4925,124.36,124.3,1.49198723]
[1766889150010,0.05190635,124.34,124.32,0.05107454]
[1766889192235,0.05190635,124.34,124.32,1.30107454]
[1766889194130,3.52,124.4,124.34,1.26]
[1766889194336,5.01198723,124.42,124.36,1.26]
[1766889194531,1.49198723,124.43,124.37,1.26]
[1766889194725,5.48198723,124.43,124.37,1.26]
[1766889195130,0.05298585,124.41,124.39,0.05161715]
[1766889195336,4.04298585,124.41,124.39,0.00161715]
[1766889201347,3.99,124.4,124.34,1.5]
[1766889201738,3.99,124.38,124.32,1.5]
[1766889202350,0.05110814,124.36,124.34,0.05270662]
[1766889206058,0.00110814,124.36,124.34,1.67270662]
[1766889207558,0.00110814,124.36,124.34,8.91560662]
[1766889207759,0.00110814,124.36,124.35,1.59]
[1766889211656,3.99,124.41,124.35,1.59]
[1766889212557,97.34861326,124.43,124.35,1.59]
[1766889212764,3.99,124.42,124.37,1.69538696]
[1766889228683,3.99,124.42,124.37,4.02400022]
[1766889231588,3.99,124.42,124.38,1.75]
[1766889236088,7.2371,124.45,124.39,1.77]
[1766889236089,4.28,124.44,124.39,1.77]
[1766889236290,4.28,124.44,124.4,0.05972847]
[1766889246293,4.28,124.44,124.37,1.8]
[1766889246496,4.28,124.43,124.37,1.8]
[1766889247393,0.06169309,124.41,124.39,0.06104058]
[1766889247599,0.05380979,124.41,124.39,0.06104058]
[1766889250491,4.33380979,124.41,124.39,0.00104058]
[1766889254997,11.57310979,124.41,124.39,0.00104058]
[1766889255203,4.3,124.4,124.34,1.95]
[1766889255405,4.3,124.4,124.32,10.06558908]
[1766889255406,4.3,124.39,124.32,1.97]
[1766889256000,4.3,124.37,124.32,1.97]
[1766889256203,0.05842922,124.36,124.33,0.05271917]
[1766889256802,0.05842922,124.36,124.33,3.514004]
[1766889257401,0.05842922,124.36,124.33,2.02271917]
[1766889257602,0.05842922,124.36,124.33,3.514004]
[1766889262816,0.05842922,124.36,124.33,2.02271917]
[1766889266823,0.05842922,124.36,124.33,3.514004]
[1766889269822,0.05842922,124.36,124.33,2.02271917]
[1766889270021,0.05842922,124.36,124.33,3.514004]
[1766889273737,0.05842922,124.36,124.33,2.02271917]
[1766889285040,4.3,124.38,124.33,10.757704]
[1766889285246,4.3,124.38,124.34,2.0]
[1766889286148,0.06048252,124.37,124.34,2.0]
[1766889302163,4.28048252,124.37,124.33,0.05271917]
[1766889305462,4.28048252,124.37,124.33,2.10271917]
[1766889306561,4.28048252,124.37,124.29,24.353967]
[1766889306766,4.22,124.35,124.29,3.54128483]
[1766889307362,4.22,124.34,124.28,2.05]
[1766889307563,0.05342925,124.32,124.3,0.05115847]
[1766889308874,0.05342925,124.32,124.28,2.05]
[1766889309463,4.27342925,124.32,124.28,2.05]
[1766889309868,4.27342925,124.32,124.29,0.06117395]
[1766889310579,0.00342925,124.32,124.3,3.50128483]
[1766889310865,4.22,124.36,124.31,3.50128483]
[1766889311774,0.05727337,124.35,124.32,0.05583124]
[1766889326080,0.05727337,124.35,124.28,7.2465]
[1766889326081,4.36727337,124.35,124.28,7.2465]
[1766889326279,4.31,124.34,124.28,2.04]
[1766889326484,4.31,124.34,124.29,4.37056669]
[1766889327173,0.05645858,124.33,124.3,0.0595049]
[1766889328182,4.36645858,124.33,124.3,0.0595049]
[1766889328482,4.36645858,124.33,124.27,2.05]
[1766889328987,4.31,124.32,124.27,2.05]
[1766889329175,4.31,124.32,124.25,2.11]
[1766889329374,0.06012188,124.3,124.27,0.05192498]
[1766889341491,4.37012188,124.3,124.24,2.33056669]
[1766889341684,4.37012188,124.3,124.24,4.50056669]
[1766889342484,4.37012188,124.3,124.26,0.05803718]
[1766889358017,0.06012188,124.3,124.26,4.58860387]
[1766889358616,0.06012188,124.3,124.26,2.25803718]
[1766889370616,0.00012188,124.3,124.26,2.25803718]
[1766889370918,0.00012188,124.3,124.26,4.58860387]
[1766889371122,0.00012188,124.3,124.27,2.15]
[1766889377931,0.00012188,124.3,124.27,3.6423639]
[1766889380029,4.34,124.33,124.29,1.4923639]
[1766889380724,4.34,124.33,124.28,3.6523639]
[1766889380926,0.05823031,124.32,124.29,0.05398153]
[1766889446385,4.52823031,124.32,124.25,2.2]
[1766889446589,4.47,124.31,124.25,2.2]
[1766889447283,4.47,124.3,124.23,2.25]
[1766889447483,0.05958021,124.28,124.25,0.05277344]
[1766889453587,4.47,124.31,124.25,2.30277344]
[1766889454587,4.47,124.31,124.26,2.19]
[1766889454891,0.05107266,124.29,124.26,2.19]
[1766889466699,4.36107266,124.29,124.25,0.05277344]
[1766889471104,0.05107266,124.29,124.25,2.25277344]
[1766889471301,0.05107266,124.29,124.26,2.2]
[1766889472907,4.31,124.33,124.26,2.2]
[1766889473099,4.31,124.32,124.26,2.2]
[1766889473902,4.31,124.32,124.28,0.05739182]
[1766889474100,0.05735135,124.3,124.28,0.05739182]
[1766889518357,4.54735135,124.3,124.25,1.49263296]
[1766889518660,4.49,124.29,124.24,2.17]
[1766889519359,11.7362,124.29,124.25,0.05728964]
[1766889522360,4.49,124.29,124.25,0.05728964]
[1766889535576,4.49,124.29,124.25,1.5499226]
[1766889536076,4.49,124.29,124.25,3.7299226]
[1766889537080,0.05735135,124.3,124.26,1.49263296]
[1766889540179,0.05735135,124.3,124.25,3.7299226]
[1766889540385,0.05735135,124.3,124.26,1.49263296]
[1766889542078,4.37735135,124.3,124.26,1.49263296]
[1766889542275,4.37735135,124.3,124.25,3.7299226]
[1766889546385,4.37735135,124.3,124.25,2.23728964]
[1766889550185,4.37735135,124.3,124.25,3.7299226]
[1766889561906,4.37735135,124.3,124.25,2.23728964]
[1766889585118,4.37735135,124.3,124.25,0.05728964]
[1766889617455,10.29221238,124.3,124.25,0.05728964]
[1766889618062,4.32,124.29,124.25,0.05728964]
[1766889621969,4.32,124.29,124.25,1.55023712]
[1766889629769,4.32,124.26,124.19,15.058067]
[1766889629969,4.32,124.24,124.17,5.22294748]
[1766889630177,4.32,124.24,124.19,1.49294748]
[1766889630870,4.37796983,124.23,124.2,0.05191502]
[1766889645091,0.05796983,124.23,124.2,1.5448625]
[1766889645293,4.46,124.25,124.22,1.49294748]
[1766889646288,4.51319107,124.25,124.22,1.49294748]
[1766889652703,4.51319107,124.25,124.21,1.49294748]
[1766889653301,4.51319107,124.25,124.2,5.1248625]
[1766889655807,4.51319107,124.25,124.21,1.49294748]
[1766889662207,4.51319107,124.25,124.2,1.5448625]
[1766889680219,4.51319107,124.25,124.2,0.05191502]
[1766889680420,4.51319107,124.25,124.2,1.5448625]
[1766889682022,4.51319107,124.25,124.2,0.05191502]
[1766889695432,4.51319107,124.25,124.2,2.38625717]
[1766889702338,4.51319107,124.25,124.2,9.63745717]
[1766889705234,9.107e-05,124.25,124.21,7.2506]
[1766889710145,9.107e-05,124.25,124.21,11.6306]
[1766889716852,9.107e-05,124.25,124.22,4.25]
[1766889724551,9.107e-05,124.25,124.21,11.5006]
[1766889738260,9.107e-05,124.25,124.21,4.25]
[1766889768083,9.107e-05,124.25,124.21,99.35]
[1766889775091,9.107e-05,124.25,124.21,100.84383435]
[1766889775285,9.107e-05,124.25,124.22,4.43]
[1766889790199,9.107e-05,124.25,124.22,5.92383435]
[1766889799601,9.107e-05,124.25,124.22,4.43]
[1766889805719,9.107e-05,124.25,124.22,5.92383435]
[1766889806016,9.107e-05,124.25,124.22,4.43]
[1766889865966,9.107e-05,124.25,124.22,5.92359978]
[1766889867063,106.6868,124.28,124.23,4.46]
[1766889868064,0.05615999,124.27,124.24,0.05881695]
[1766889868266,1.49359978,124.31,124.25,4.46]
[1766889868463,11.93270753,124.31,124.24,96.59359978]
[1766889868666,10.43910775,124.3,124.24,96.59359978]
[1766889869254,0.06038047,124.28,124.26,0.05940217]
[1766889869564,0.06038047,124.28,124.23,96.59359978]
[1766889869755,11.7663,124.29,124.23,96.59359978]
[1766889870567,0.05304855,124.27,124.25,0.05083068]
[1766889895593,0.00304855,124.27,124.25,0.05083068]
[1766889896988,0.00304855,124.27,124.25,1.54443046]
[1766889897998,7.2457,124.3,124.26,1.49359978]
[1766889898896,0.05955628,124.29,124.26,1.49359978]
[1766889901296,4.0,124.35,124.28,1.49359978]
[1766889901495,4.0,124.35,124.26,95.1]
[1766889901496,4.0,124.35,124.32,9.978e-05]
[1766889901691,4.0,124.32,124.23,7.2494]
[1766889901884,4.0,124.32,124.26,1.49359978]
[1766889902084,4.0,124.32,124.27,1.49359978]
[1766889902297,4.05740554,124.31,124.28,0.05573902]
[1766889905492,5.55100532,124.31,124.28,0.05573902]
[1766889905903,4.05740554,124.31,124.28,0.05573902]
[1766889910309,5.55100532,124.31,124.28,0.05573902]
[1766889915205,4.05740554,124.31,124.28,0.05573902]
[1766889922910,4.05740554,124.31,124.25,1.49359978]
[1766889923505,3.55,124.26,124.18,17.22183421]
[1766889923705,3.55,124.26,124.2,1.49359978]
[1766889923910,0.05715572,124.24,124.22,0.05970882]
[1766889944533,3.55,124.27,124.22,0.05970882]
[1766889945539,0.05954576,124.26,124.22,0.05970882]
[1766889945736,3.58954576,124.26,124.22,0.05970882]
[1766889957759,3.58954576,124.26,124.22,2.39419773]
[1766889957947,4.576e-05,124.26,124.22,2.54419773]
[1766889958551,4.576e-05,124.26,124.22,9.79409773]
[1766889972971,4.576e-05,124.26,124.22,104.89409773]
[1766889973373,4.576e-05,124.26,124.22,97.64419773]
[1766889973971,7.2463,124.29,124.22,97.64419773]
[1766889974174,3.3,124.28,124.22,97.64419773]
[1766889976875,3.3,124.28,124.22,95.30970882]
[1766889987892,3.3,124.28,124.22,96.80329876]
[1766889990397,3.3,124.28,124.22,1.70329876]
[1766889990898,3.38,124.27,124.22,0.20970882]
[1766889991201,3.38,124.27,124.22,1.70329876]
[1766889992102,3.38,124.27,124.23,1.49358994]
[1766890019017,3.38,124.27,124.22,1.70329876]
[1766890024919,3.38,124.27,124.23,1.49358994]
[1766890028823,3.38,124.27,124.22,1.70329876]
[1766890034330,3.38,124.27,124.23,1.49358994]
[1766890040135,10.6274,124.27,124.23,1.49358994]
[1766890041034,10.6274,124.27,124.22,1.70329876]
[1766890046939,10.6274,124.27,124.23,1.49358994]
[1766890047833,10.6274,124.27,124.22,1.70329876]
[1766890049341,10.6274,124.27,124.23,1.49358994]
[1766890049947,10.6274,124.27,124.22,0.20970882]
[1766890061665,3.9,124.26,124.22,0.20970882]
[1766890065567,3.9,124.26,124.22,2.54343819]
[1766890069874,3.9,124.26,124.22,2.39343819]
[1766890070574,3.9,124.26,124.22,0.05970882]
[1766890089577,3.9,124.26,124.2,12.35005935]
[1766890089784,3.9,124.26,124.2,107.45005935]
[1766890090780,0.06104197,124.24,124.22,0.06152817]
[1766890107096,4.13104197,124.24,124.19,97.43372937]
[1766890107602,4.13104197,124.24,124.19,2.33372937]
[1766890108000,4.13104197,124.24,124.2,0.06023012]
[1766890111908,4.13104197,124.24,124.2,1.55435686]
[1766890116322,4.13104197,124.24,124.2,0.06023012]
[1766890116615,4.13104197,124.24,124.2,1.55435686]
[1766890119119,4.13104197,124.24,124.2,0.00023012]
[1766890120826,4.07,124.23,124.2,0.00023012]
[1766890128329,11.3198,124.23,124.2,0.00023012]
[1766890128519,4.37,124.22,124.16,1.3506357]
[1766890128720,4.37,124.22,124.18,1.49412674]
[1766890129521,4.42252416,124.21,124.19,0.06042867]
[1766890135325,4.42252416,124.21,124.17,1.49412674]
[1766890136331,4.42252416,124.21,124.18,0.0575673]
[1766890136530,4.42252416,124.21,124.18,1.55169404]
[1766890139435,4.37,124.2,124.16,1.49412674]
[1766890140228,4.37,124.2,124.12,102.3959]
[1766890140434,0.05427422,124.17,124.16,1.49412674]
[1766890140637,4.43036197,124.18,124.16,0.00412674]
[1766890144337,4.43036197,124.18,124.15,1.54769085]
[1766890144538,4.43036197,124.18,124.15,0.05356411]
[1766890144729,4.43036197,124.18,124.15,1.54769085]
[1766890145939,4.43036197,124.18,124.15,0.05356411]
[1766890146143,4.43036197,124.18,124.15,1.54769085]
[1766890153443,4.43036197,124.18,124.14,1.49412674]